[Event "Titled Tuesday Blitz April 4 Early 2023"]
[White "Aponte Ramos, Argimiro"]
[Black "Becerra, Juan David"]
[WhiteFideId "3900568"]
[BlackFideId "4404998"]
[WhiteElo "2216"]
[BlackElo "2276"]
[Result "0-1"]
[Round "02"]
[TimeControl "180+2"]
[Date "2023.04.04"]
[WhiteClock "0:01:01"]
[BlackClock "0:02:01"]

1. d4 {[%clk 0:03:00]}  d5 {[%clk 0:02:58]} 2. Nf3 {[%clk 0:03:00]}  Nf6 {[%clk 0:02:56]} 3. c4 {[%clk 0:03:00]}  c6 {[%clk 0:02:56]} 4. Nc3 {[%clk 0:02:59]}  e6 {[%clk 0:02:56]} 5. cxd5 {[%clk 0:02:55]}  exd5 {[%clk 0:02:55]} 6. Bg5 {[%clk 0:02:55]}  Be7 {[%clk 0:02:56]} 7. Qc2 {[%clk 0:02:54]}  O-O {[%clk 0:02:55]} 8. e3 {[%clk 0:02:54]}  a5 {[%clk 0:02:51]} 9. Bd3 {[%clk 0:02:53]}  h6 {[%clk 0:02:49]} 10. Bf4 {[%clk 0:02:50]}  Na6 {[%clk 0:02:49]} 11. a3 {[%clk 0:02:48]}  Be6 {[%clk 0:02:49]} 12. O-O {[%clk 0:02:43]}  Nc7 {[%clk 0:02:47]} 13. h3 {[%clk 0:02:37]}  Nce8 {[%clk 0:02:47]} 14. Ne5 {[%clk 0:02:34]}  Nd6 {[%clk 0:02:47]} 15. Bh2 {[%clk 0:02:31]}  Re8 {[%clk 0:02:39]} 16. f4 {[%clk 0:02:27]}  Rc8 {[%clk 0:02:28]} 17. g4 {[%clk 0:02:20]}  c5 {[%clk 0:02:27]} 18. Rf2 {[%clk 0:02:11]}  cxd4 {[%clk 0:02:24]} 19. exd4 {[%clk 0:02:10]}  Nfe4 {[%clk 0:02:24]} 20. Rf3 {[%clk 0:02:06]}  Qb6 {[%clk 0:02:18]} 21. f5 {[%clk 0:01:45]}  Qxd4+ {[%clk 0:02:16]} 22. Kg2 {[%clk 0:01:44]}  Nxc3 {[%clk 0:02:14]} 23. fxe6 {[%clk 0:01:36]}  Nce4 {[%clk 0:02:12]} 24. exf7+ {[%clk 0:01:20]}  Nxf7 {[%clk 0:02:11]} 25. Qxc8 {[%clk 0:01:01]}  Rxc8 {[%clk 0:02:08]} 26. Rxf7 {[%clk 0:01:01]}  Qxb2+ {[%clk 0:02:01]} 0-1


[Site "https://www.chess.com"]

[Event "Titled Tuesday Blitz April 4 Early 2023"]
[White "Ronka, Erik"]
[Black "dDobravcan"]
[WhiteFideId "505080"]
[WhiteElo "2264"]
[BlackElo "2149"]
[Result "1-0"]
[Round "02"]
[TimeControl "180+2"]
[Date "2023.04.04"]
[WhiteClock "0:01:29"]
[BlackClock "0:00:33"]

1. e4 {[%clk 0:03:00]}  d6 {[%clk 0:02:58]} 2. d4 {[%clk 0:03:00]}  Nf6 {[%clk 0:02:58]} 3. Nc3 {[%clk 0:03:01]}  c6 {[%clk 0:02:58]} 4. f4 {[%clk 0:03:01]}  Qa5 {[%clk 0:02:58]} 5. Bd3 {[%clk 0:03:00]}  e5 {[%clk 0:02:53]} 6. Nf3 {[%clk 0:03:00]}  Nbd7 {[%clk 0:02:50]} 7. O-O {[%clk 0:02:59]}  exd4 {[%clk 0:02:43]} 8. Nxd4 {[%clk 0:02:59]}  Qb6 {[%clk 0:02:43]} 9. Be3 {[%clk 0:02:59]}  Qxb2 {[%clk 0:02:37]} 10. Qd2 {[%clk 0:02:59]}  Qa3 {[%clk 0:02:31]} 11. Ncb5 {[%clk 0:02:06]}  cxb5 {[%clk 0:01:59]} 12. Nxb5 {[%clk 0:02:06]}  Qa4 {[%clk 0:01:54]} 13. Nc7+ {[%clk 0:02:05]}  Kd8 {[%clk 0:01:52]} 14. Nxa8 {[%clk 0:02:06]}  b6 {[%clk 0:01:39]} 15. e5 {[%clk 0:02:06]}  dxe5 {[%clk 0:01:33]} 16. fxe5 {[%clk 0:02:07]}  Nd5 {[%clk 0:01:31]} 17. Bg5+ {[%clk 0:01:57]}  f6 {[%clk 0:01:24]} 18. exf6 {[%clk 0:01:57]}  gxf6 {[%clk 0:01:23]} 19. Bf5 {[%clk 0:01:42]}  Bc5+ {[%clk 0:01:03]} 20. Kh1 {[%clk 0:01:42]}  Qd4 {[%clk 0:00:52]} 21. Qxd4 {[%clk 0:01:37]}  Bxd4 {[%clk 0:00:51]} 22. Rad1 {[%clk 0:01:37]}  Ne3 {[%clk 0:00:44]} 23. Rxd4 {[%clk 0:01:30]}  Nxf1 {[%clk 0:00:41]} 24. Bxf6+ {[%clk 0:01:31]}  Ke8 {[%clk 0:00:37]} 25. Bxh8 {[%clk 0:01:31]}  Nc5 {[%clk 0:00:33]} 26. Bxc8 {[%clk 0:01:29]} 1-0


[Site "https://www.chess.com"]

[Event "Titled Tuesday Blitz April 4 Early 2023"]
[White "Kashtanov, Ruslan"]
[Black "Kornyukov, Alexey"]
[WhiteFideId "4124871"]
[BlackFideId "4150457"]
[WhiteElo "2276"]
[BlackElo "2352"]
[Result "1-0"]
[Round "02"]
[TimeControl "180+2"]
[Date "2023.04.04"]
[WhiteClock "0:01:03"]
[BlackClock "0:00:58"]

1. d4 {[%clk 0:03:00]}  d5 {[%clk 0:02:52]} 2. c4 {[%clk 0:03:00]}  e6 {[%clk 0:02:49]} 3. Nf3 {[%clk 0:03:00]}  Nf6 {[%clk 0:02:43]} 4. g3 {[%clk 0:02:59]}  Be7 {[%clk 0:02:42]} 5. Bg2 {[%clk 0:02:57]}  O-O {[%clk 0:02:41]} 6. Qc2 {[%clk 0:02:57]}  c5 {[%clk 0:02:39]} 7. dxc5 {[%clk 0:02:49]}  Bxc5 {[%clk 0:02:37]} 8. O-O {[%clk 0:02:48]}  Nc6 {[%clk 0:02:33]} 9. a3 {[%clk 0:02:42]}  Bb6 {[%clk 0:02:30]} 10. Rd1 {[%clk 0:02:34]}  Qe7 {[%clk 0:02:06]} 11. b4 {[%clk 0:02:32]}  dxc4 {[%clk 0:02:04]} 12. Nbd2 {[%clk 0:02:23]}  Nd5 {[%clk 0:02:01]} 13. Nxc4 {[%clk 0:02:22]}  Rd8 {[%clk 0:01:58]} 14. Bb2 {[%clk 0:02:19]}  e5 {[%clk 0:01:52]} 15. Nfxe5 {[%clk 0:02:10]}  Nxe5 {[%clk 0:01:50]} 16. Nxe5 {[%clk 0:02:11]}  Be6 {[%clk 0:01:45]} 17. Rac1 {[%clk 0:01:41]}  Rac8 {[%clk 0:01:42]} 18. Qe4 {[%clk 0:01:38]}  Nf6 {[%clk 0:01:26]} 19. Qxb7 {[%clk 0:01:13]}  Rxc1 {[%clk 0:01:13]} 20. Rxc1 {[%clk 0:01:11]}  Qxb7 {[%clk 0:01:10]} 21. Bxb7 {[%clk 0:01:12]}  Bd5 {[%clk 0:01:07]} 22. Bxd5 {[%clk 0:01:06]}  Nxd5 {[%clk 0:01:02]} 23. Nc6 {[%clk 0:01:06]}  Rc8 {[%clk 0:00:58]} 24. e4 {[%clk 0:01:03]} 1-0


[Site "https://www.chess.com"]

[Event "Titled Tuesday Blitz April 4 Early 2023"]
[White "Meduri, Aakaash"]
[Black "Vargas Rodriguez, Wilver"]
[WhiteFideId "2032252"]
[BlackFideId "3509672"]
[WhiteElo "2113"]
[BlackElo "2224"]
[Result "1-0"]
[Round "02"]
[TimeControl "180+2"]
[Date "2023.04.04"]
[WhiteClock "0:01:08"]
[BlackClock "0:00:01"]

1. e4 {[%clk 0:03:00]}  c5 {[%clk 0:02:53]} 2. Na3 {[%clk 0:02:59]}  Nc6 {[%clk 0:02:37]} 3. Bb5 {[%clk 0:02:58]}  Nf6 {[%clk 0:02:28]} 4. d3 {[%clk 0:02:55]}  g6 {[%clk 0:02:26]} 5. Nf3 {[%clk 0:02:53]}  Bg7 {[%clk 0:02:26]} 6. Bxc6 {[%clk 0:02:52]}  dxc6 {[%clk 0:02:26]} 7. O-O {[%clk 0:02:52]}  O-O {[%clk 0:02:25]} 8. h3 {[%clk 0:02:50]}  Qc7 {[%clk 0:01:45]} 9. Be3 {[%clk 0:02:46]}  b6 {[%clk 0:01:43]} 10. Qd2 {[%clk 0:02:42]}  Rd8 {[%clk 0:01:41]} 11. Bf4 {[%clk 0:02:39]}  Qd7 {[%clk 0:01:27]} 12. Rfe1 {[%clk 0:02:29]}  Nh5 {[%clk 0:01:11]} 13. Nc4 {[%clk 0:02:05]}  Ba6 {[%clk 0:01:05]} 14. Nce5 {[%clk 0:02:00]}  Qe6 {[%clk 0:00:24]} 15. Bh2 {[%clk 0:01:59]}  h6 {[%clk 0:00:17]} 16. g4 {[%clk 0:01:53]}  Nf6 {[%clk 0:00:10]} 17. g5 {[%clk 0:01:53]}  Nd7 {[%clk 0:00:05]} 18. Nxd7 {[%clk 0:01:48]}  Qxd7 {[%clk 0:00:05]} 19. gxh6 {[%clk 0:01:47]}  Bxb2 {[%clk 0:00:06]} 20. Rab1 {[%clk 0:01:46]}  Bh8 {[%clk 0:00:06]} 21. Qf4 {[%clk 0:01:37]}  Qd6 {[%clk 0:00:04]} 22. e5 {[%clk 0:01:32]}  Qd5 {[%clk 0:00:03]} 23. Ng5 {[%clk 0:01:28]}  Bc8 {[%clk 0:00:02]} 24. e6 {[%clk 0:01:24]}  f6 {[%clk 0:00:01]} 25. h7+ {[%clk 0:01:17]}  Kg7 {[%clk 0:00:01]} 26. h4 {[%clk 0:01:08]}  Bxe6 {[%clk 0:00:01]} 27. Nxe6+ {[%clk 0:01:08]} 1-0


[Site "https://www.chess.com"]

[Event "Titled Tuesday Blitz April 4 Early 2023"]
[White "Pirvulescu, Ekaterina"]
[Black "Kielinkei"]
[WhiteFideId "13506374"]
[WhiteElo "2006"]
[BlackElo "2424"]
[Result "0-1"]
[Round "02"]
[TimeControl "180+2"]
[Date "2023.04.04"]
[WhiteClock "0:00:01"]
[BlackClock "0:00:04"]

1. e4 {[%clk 0:03:00]}  c5 {[%clk 0:02:58]} 2. a3 {[%clk 0:02:59]}  e6 {[%clk 0:02:51]} 3. b4 {[%clk 0:02:58]}  b6 {[%clk 0:02:51]} 4. g3 {[%clk 0:02:45]}  Bb7 {[%clk 0:02:51]} 5. Bg2 {[%clk 0:02:45]}  Nf6 {[%clk 0:02:41]} 6. d3 {[%clk 0:02:34]}  cxb4 {[%clk 0:02:39]} 7. axb4 {[%clk 0:02:34]}  Bxb4+ {[%clk 0:02:40]} 8. c3 {[%clk 0:02:34]}  Be7 {[%clk 0:02:35]} 9. Ne2 {[%clk 0:02:34]}  O-O {[%clk 0:02:32]} 10. O-O {[%clk 0:02:34]}  d5 {[%clk 0:02:29]} 11. e5 {[%clk 0:02:33]}  Nfd7 {[%clk 0:02:28]} 12. d4 {[%clk 0:02:33]}  Nc6 {[%clk 0:02:20]} 13. f4 {[%clk 0:02:22]}  f5 {[%clk 0:02:11]} 14. exf6 {[%clk 0:02:09]}  Nxf6 {[%clk 0:02:12]} 15. Nd2 {[%clk 0:02:06]}  Rc8 {[%clk 0:02:01]} 16. Ba3 {[%clk 0:02:01]}  Bxa3 {[%clk 0:01:56]} 17. Rxa3 {[%clk 0:02:01]}  Ng4 {[%clk 0:01:46]} 18. Rf3 {[%clk 0:01:48]}  Qd6 {[%clk 0:01:38]} 19. Ra1 {[%clk 0:01:42]}  Na5 {[%clk 0:01:33]} 20. Nc1 {[%clk 0:01:37]}  Nf6 {[%clk 0:01:18]} 21. Ncb3 {[%clk 0:01:29]}  Nxb3 {[%clk 0:01:13]} 22. Nxb3 {[%clk 0:01:29]}  a5 {[%clk 0:01:12]} 23. Nd2 {[%clk 0:01:15]}  Bc6 {[%clk 0:01:06]} 24. Re3 {[%clk 0:01:05]}  a4 {[%clk 0:01:02]} 25. Qe1 {[%clk 0:01:05]}  Rfe8 {[%clk 0:01:01]} 26. Re5 {[%clk 0:00:56]}  a3 {[%clk 0:00:55]} 27. Nf3 {[%clk 0:00:42]}  Ne4 {[%clk 0:00:52]} 28. Ng5 {[%clk 0:00:40]}  Nxg5 {[%clk 0:00:50]} 29. fxg5 {[%clk 0:00:39]}  Ra8 {[%clk 0:00:47]} 30. g6 {[%clk 0:00:33]}  h6 {[%clk 0:00:29]} 31. Bh3 {[%clk 0:00:23]}  Bd7 {[%clk 0:00:29]} 32. Qe3 {[%clk 0:00:14]}  a2 {[%clk 0:00:27]} 33. Qe2 {[%clk 0:00:13]}  Qc6 {[%clk 0:00:26]} 34. Rxa2 {[%clk 0:00:11]}  Rxa2 {[%clk 0:00:26]} 35. Qxa2 {[%clk 0:00:11]}  Qxc3 {[%clk 0:00:27]} 36. Qf2 {[%clk 0:00:10]}  Rf8 {[%clk 0:00:20]} 37. Qe1 {[%clk 0:00:09]}  Qxd4+ {[%clk 0:00:20]} 38. Kh1 {[%clk 0:00:09]}  Bb5 {[%clk 0:00:16]} 39. Bxe6+ {[%clk 0:00:08]}  Kh8 {[%clk 0:00:16]} 40. Bh3 {[%clk 0:00:09]}  Qb2 {[%clk 0:00:05]} 41. Bg2 {[%clk 0:00:08]}  Bc4 {[%clk 0:00:04]} 42. Re8 {[%clk 0:00:08]}  Qf6 {[%clk 0:00:03]} 43. Rxf8+ {[%clk 0:00:07]}  Qxf8 {[%clk 0:00:04]} 44. Qe5 {[%clk 0:00:06]}  Qd8 {[%clk 0:00:04]} 45. h4 {[%clk 0:00:06]}  b5 {[%clk 0:00:04]} 46. Kh2 {[%clk 0:00:05]}  d4 {[%clk 0:00:04]} 47. Be4 {[%clk 0:00:02]}  d3 {[%clk 0:00:05]} 48. Qc5 {[%clk 0:00:01]}  d2 {[%clk 0:00:04]} 0-1


[Site "https://www.chess.com"]

[Event "Titled Tuesday Blitz April 4 Early 2023"]
[White "Omariev, Maksim"]
[Black "Hartikainen, Jarmo"]
[WhiteFideId "4193423"]
[BlackFideId "503134"]
[WhiteElo "2422"]
[BlackElo "2080"]
[Result "1-0"]
[Round "02"]
[TimeControl "180+2"]
[Date "2023.04.04"]
[WhiteClock "0:00:16"]
[BlackClock "0:00:31"]

1. g4 {[%clk 0:02:54]}  g6 {[%clk 0:02:52]} 2. Bg2 {[%clk 0:02:33]}  Bg7 {[%clk 0:02:53]} 3. h4 {[%clk 0:02:28]}  c5 {[%clk 0:02:51]} 4. h5 {[%clk 0:02:25]}  Nc6 {[%clk 0:02:51]} 5. d3 {[%clk 0:02:22]}  d5 {[%clk 0:02:47]} 6. h6 {[%clk 0:02:20]}  Be5 {[%clk 0:02:38]} 7. f4 {[%clk 0:02:15]}  Bc7 {[%clk 0:02:37]} 8. g5 {[%clk 0:02:14]}  e5 {[%clk 0:02:36]} 9. e3 {[%clk 0:02:13]}  Nge7 {[%clk 0:02:25]} 10. Nc3 {[%clk 0:02:00]}  Be6 {[%clk 0:02:22]} 11. Qe2 {[%clk 0:01:48]}  Qd7 {[%clk 0:01:56]} 12. Bd2 {[%clk 0:01:31]}  O-O-O {[%clk 0:01:53]} 13. O-O-O {[%clk 0:01:29]}  Nf5 {[%clk 0:01:52]} 14. Qf2 {[%clk 0:01:24]}  Kb8 {[%clk 0:01:37]} 15. Nb5 {[%clk 0:01:21]}  Bb6 {[%clk 0:01:21]} 16. Ne2 {[%clk 0:00:59]}  a6 {[%clk 0:01:21]} 17. Nbc3 {[%clk 0:00:58]}  Rhe8 {[%clk 0:01:12]} 18. fxe5 {[%clk 0:00:55]}  Nxe5 {[%clk 0:01:06]} 19. e4 {[%clk 0:00:55]}  Nd4 {[%clk 0:00:58]} 20. exd5 {[%clk 0:00:53]}  Nxe2+ {[%clk 0:00:49]} 21. Nxe2 {[%clk 0:00:35]}  Bxd5 {[%clk 0:00:48]} 22. Bxd5 {[%clk 0:00:36]}  Qxd5 {[%clk 0:00:48]} 23. Nc3 {[%clk 0:00:37]}  Qf3 {[%clk 0:00:45]} 24. Qh2 {[%clk 0:00:36]}  Bc7 {[%clk 0:00:44]} 25. Rhf1 {[%clk 0:00:20]}  Qxf1 {[%clk 0:00:35]} 26. Rxf1 {[%clk 0:00:15]}  Nxd3+ {[%clk 0:00:35]} 27. cxd3 {[%clk 0:00:16]}  Bxh2 {[%clk 0:00:35]} 28. Rxf7 {[%clk 0:00:16]}  Rf8 {[%clk 0:00:23]} 29. Rxh7 {[%clk 0:00:16]}  Bf4 {[%clk 0:00:23]} 30. Bxf4+ {[%clk 0:00:10]}  Rxf4 {[%clk 0:00:23]} 31. Ne4 {[%clk 0:00:02]}  Rf1+ {[%clk 0:00:19]} 32. Kc2 {[%clk 0:00:02]}  Rg1 {[%clk 0:00:18]} 33. Rg7 {[%clk 0:00:02]}  Rg2+ {[%clk 0:00:19]} 34. Kc3 {[%clk 0:00:02]}  Re8 {[%clk 0:00:19]} 35. Rxg6 {[%clk 0:00:02]}  Rxe4 {[%clk 0:00:19]} 36. dxe4 {[%clk 0:00:02]}  Rg3+ {[%clk 0:00:20]} 37. Kc4 {[%clk 0:00:02]}  Rh3 {[%clk 0:00:21]} 38. Rg7 {[%clk 0:00:02]}  Kc8 {[%clk 0:00:20]} 39. h7 {[%clk 0:00:02]}  Kd8 {[%clk 0:00:20]} 40. g6 {[%clk 0:00:03]}  Ke8 {[%clk 0:00:20]} 41. Rg8+ {[%clk 0:00:04]}  Ke7 {[%clk 0:00:20]} 42. h8=Q {[%clk 0:00:04]}  Rxh8 {[%clk 0:00:20]} 43. Rxh8 {[%clk 0:00:05]}  Kf6 {[%clk 0:00:21]} 44. Rh7 {[%clk 0:00:06]}  Kxg6 {[%clk 0:00:21]} 45. Rxb7 {[%clk 0:00:07]}  Kf6 {[%clk 0:00:22]} 46. Rc7 {[%clk 0:00:08]}  Ke5 {[%clk 0:00:23]} 47. Rxc5+ {[%clk 0:00:09]}  Kxe4 {[%clk 0:00:23]} 48. Ra5 {[%clk 0:00:10]}  Ke3 {[%clk 0:00:24]} 49. Rxa6 {[%clk 0:00:10]}  Ke2 {[%clk 0:00:25]} 50. Ra5 {[%clk 0:00:11]}  Kd2 {[%clk 0:00:26]} 51. Rd5+ {[%clk 0:00:12]}  Kc2 {[%clk 0:00:27]} 52. b4 {[%clk 0:00:13]}  Kb2 {[%clk 0:00:28]} 53. b5 {[%clk 0:00:14]}  Kxa2 {[%clk 0:00:29]} 54. b6 {[%clk 0:00:15]}  Kb2 {[%clk 0:00:30]} 55. b7 {[%clk 0:00:14]}  Kc2 {[%clk 0:00:29]} 56. b8=Q {[%clk 0:00:15]}  Kc1 {[%clk 0:00:30]} 57. Rd3 {[%clk 0:00:14]}  Kc2 {[%clk 0:00:30]} 58. Qb3+ {[%clk 0:00:15]}  Kc1 {[%clk 0:00:31]} 59. Rd1# {[%clk 0:00:16]} 1-0


[Site "https://www.chess.com"]

[Event "Titled Tuesday Blitz April 4 Early 2023"]
[White "Chandreyee, Hajra"]
[Black "Winkels, Marcel"]
[WhiteFideId "5056535"]
[BlackFideId "1003887"]
[WhiteElo "1725"]
[BlackElo "1900"]
[Result "1-0"]
[Round "02"]
[TimeControl "180+2"]
[Date "2023.04.04"]
[WhiteClock "0:00:42"]
[BlackClock "0:01:17"]

1. e4 {[%clk 0:03:00]}  c5 {[%clk 0:02:58]} 2. Nf3 {[%clk 0:02:58]}  d6 {[%clk 0:02:59]} 3. d4 {[%clk 0:02:57]}  cxd4 {[%clk 0:03:00]} 4. Nxd4 {[%clk 0:02:58]}  Nf6 {[%clk 0:03:00]} 5. Nc3 {[%clk 0:02:58]}  a6 {[%clk 0:03:01]} 6. Bg5 {[%clk 0:02:57]}  e6 {[%clk 0:03:00]} 7. f4 {[%clk 0:02:52]}  Be7 {[%clk 0:03:01]} 8. Qf3 {[%clk 0:02:51]}  Qc7 {[%clk 0:03:01]} 9. O-O-O {[%clk 0:02:50]}  Nbd7 {[%clk 0:02:59]} 10. g4 {[%clk 0:02:48]}  h6 {[%clk 0:02:58]} 11. Bxf6 {[%clk 0:02:46]}  Bxf6 {[%clk 0:02:57]} 12. h4 {[%clk 0:02:46]}  O-O {[%clk 0:02:51]} 13. g5 {[%clk 0:02:44]}  Bxd4 {[%clk 0:02:49]} 14. Rxd4 {[%clk 0:02:44]}  Qc5 {[%clk 0:02:45]} 15. Rd2 {[%clk 0:02:39]}  b5 {[%clk 0:02:33]} 16. gxh6 {[%clk 0:02:39]}  g6 {[%clk 0:02:32]} 17. h5 {[%clk 0:02:35]}  Kh7 {[%clk 0:02:32]} 18. Rg2 {[%clk 0:02:15]}  Rg8 {[%clk 0:02:29]} 19. hxg6+ {[%clk 0:02:04]}  fxg6 {[%clk 0:02:27]} 20. e5 {[%clk 0:02:00]}  Rb8 {[%clk 0:02:17]} 21. Ne4 {[%clk 0:01:49]}  Bb7 {[%clk 0:02:16]} 22. Nxc5 {[%clk 0:01:37]}  Bxf3 {[%clk 0:02:15]} 23. Nxd7 {[%clk 0:01:37]}  Bxg2 {[%clk 0:02:15]} 24. Bxg2 {[%clk 0:01:33]}  d5 {[%clk 0:01:54]} 25. Nf6+ {[%clk 0:01:26]}  Kh8 {[%clk 0:01:53]} 26. Nxg8 {[%clk 0:01:16]}  Kxg8 {[%clk 0:01:53]} 27. Bh3 {[%clk 0:01:16]}  Rb6 {[%clk 0:01:51]} 28. h7+ {[%clk 0:01:12]}  Kh8 {[%clk 0:01:50]} 29. Bg4 {[%clk 0:01:10]}  a5 {[%clk 0:01:42]} 30. Kd2 {[%clk 0:01:07]}  b4 {[%clk 0:01:41]} 31. Ke3 {[%clk 0:01:05]}  a4 {[%clk 0:01:40]} 32. Kd4 {[%clk 0:01:05]}  Rc6 {[%clk 0:01:37]} 33. Rh2 {[%clk 0:00:57]}  Rc4+ {[%clk 0:01:36]} 34. Ke3 {[%clk 0:00:57]}  Re4+ {[%clk 0:01:35]} 35. Kf3 {[%clk 0:00:56]}  Rc4 {[%clk 0:01:33]} 36. Bxe6 {[%clk 0:00:55]}  Rc5 {[%clk 0:01:33]} 37. f5 {[%clk 0:00:54]}  gxf5 {[%clk 0:01:32]} 38. Bxf5 {[%clk 0:00:54]}  Rb5 {[%clk 0:01:26]} 39. Rg2 {[%clk 0:00:52]}  Rb8 {[%clk 0:01:25]} 40. e6 {[%clk 0:00:50]}  d4 {[%clk 0:01:24]} 41. Ke4 {[%clk 0:00:50]}  Rf8 {[%clk 0:01:20]} 42. e7 {[%clk 0:00:46]}  Re8 {[%clk 0:01:17]} 43. Rg8+ {[%clk 0:00:45]}  Rxg8 {[%clk 0:01:16]} 44. hxg8=Q+ {[%clk 0:00:45]}  Kxg8 {[%clk 0:01:17]} 45. e8=Q+ {[%clk 0:00:44]}  Kg7 {[%clk 0:01:18]} 46. Qe7+ {[%clk 0:00:43]}  Kh6 {[%clk 0:01:17]} 47. Qf6+ {[%clk 0:00:42]} 1-0


[Site "https://www.chess.com"]

[Event "Titled Tuesday Blitz April 4 Early 2023"]
[White "Necula, Iulian"]
[Black "Leve, Nitai"]
[WhiteFideId "1232380"]
[BlackFideId "2006898"]
[WhiteElo "1790"]
[BlackElo "2144"]
[Result "1-0"]
[Round "02"]
[TimeControl "180+2"]
[Date "2023.04.04"]
[WhiteClock "0:00:37"]
[BlackClock "0:00:02"]

1. d4 {[%clk 0:03:00]}  Nf6 {[%clk 0:02:55]} 2. Nc3 {[%clk 0:03:00]}  d5 {[%clk 0:02:54]} 3. Bf4 {[%clk 0:03:00]}  a6 {[%clk 0:02:53]} 4. e3 {[%clk 0:03:00]}  Bf5 {[%clk 0:02:53]} 5. f3 {[%clk 0:02:59]}  e6 {[%clk 0:02:53]} 6. g4 {[%clk 0:02:59]}  Bg6 {[%clk 0:02:54]} 7. h4 {[%clk 0:02:59]}  h5 {[%clk 0:02:51]} 8. g5 {[%clk 0:02:59]}  Nfd7 {[%clk 0:02:51]} 9. Bd3 {[%clk 0:02:58]}  Bxd3 {[%clk 0:02:51]} 10. cxd3 {[%clk 0:02:59]}  c5 {[%clk 0:02:50]} 11. dxc5 {[%clk 0:02:57]}  Bxc5 {[%clk 0:02:49]} 12. d4 {[%clk 0:02:57]}  Bb6 {[%clk 0:02:49]} 13. Nge2 {[%clk 0:02:53]}  Nc6 {[%clk 0:02:49]} 14. a3 {[%clk 0:02:51]}  Qe7 {[%clk 0:02:25]} 15. Ng3 {[%clk 0:02:29]}  Rc8 {[%clk 0:01:56]} 16. Qd3 {[%clk 0:02:27]}  Ba5 {[%clk 0:01:36]} 17. Kf2 {[%clk 0:02:22]}  Bxc3 {[%clk 0:00:23]} 18. bxc3 {[%clk 0:02:21]}  Na5 {[%clk 0:00:20]} 19. Rhb1 {[%clk 0:02:19]}  Nf8 {[%clk 0:00:10]} 20. Be5 {[%clk 0:02:08]}  f6 {[%clk 0:00:05]} 21. Bf4 {[%clk 0:02:07]}  Kf7 {[%clk 0:00:04]} 22. e4 {[%clk 0:01:53]}  Ng6 {[%clk 0:00:04]} 23. Be3 {[%clk 0:01:37]}  Rc4 {[%clk 0:00:04]} 24. gxf6 {[%clk 0:01:36]}  gxf6 {[%clk 0:00:03]} 25. exd5 {[%clk 0:01:32]}  exd5 {[%clk 0:00:03]} 26. Re1 {[%clk 0:01:31]}  Qc7 {[%clk 0:00:03]} 27. Qf5 {[%clk 0:01:12]}  Rxc3 {[%clk 0:00:02]} 28. Qxd5+ {[%clk 0:01:12]}  Kg7 {[%clk 0:00:02]} 29. Bd2 {[%clk 0:01:05]}  Rc2 {[%clk 0:00:02]} 30. Re2 {[%clk 0:01:04]}  Nc4 {[%clk 0:00:02]} 31. Nf5+ {[%clk 0:01:02]}  Kh7 {[%clk 0:00:02]} 32. Rd1 {[%clk 0:00:49]}  Rd8 {[%clk 0:00:02]} 33. Qe4 {[%clk 0:00:48]}  Qh2+ {[%clk 0:00:01]} 34. Kf1 {[%clk 0:00:42]}  Qh1+ {[%clk 0:00:02]} 35. Kf2 {[%clk 0:00:40]}  Qxd1 {[%clk 0:00:02]} 36. Qxb7+ {[%clk 0:00:38]}  Kh8 {[%clk 0:00:02]} 37. Qg7# {[%clk 0:00:37]} 1-0


[Site "https://www.chess.com"]

[Event "Titled Tuesday Blitz April 4 Early 2023"]
[White "Devaev, Alexander"]
[Black "Latreche, Khadidja"]
[WhiteFideId "4169395"]
[BlackFideId "7901780"]
[WhiteElo "2204"]
[BlackElo "1869"]
[Result "1-0"]
[Round "02"]
[TimeControl "180+2"]
[Date "2023.04.04"]
[WhiteClock "0:01:28"]
[BlackClock "0:00:14"]

1. d4 {[%clk 0:03:00]}  d5 {[%clk 0:02:57]} 2. c4 {[%clk 0:02:59]}  e6 {[%clk 0:02:56]} 3. Nc3 {[%clk 0:02:20]}  Bb4 {[%clk 0:02:50]} 4. Nf3 {[%clk 0:02:18]}  Nf6 {[%clk 0:02:49]} 5. Qb3 {[%clk 0:02:19]}  Nc6 {[%clk 0:02:21]} 6. a3 {[%clk 0:02:17]}  Bxc3+ {[%clk 0:02:21]} 7. Qxc3 {[%clk 0:02:12]}  Ne4 {[%clk 0:02:16]} 8. Qc2 {[%clk 0:02:11]}  O-O {[%clk 0:02:12]} 9. g3 {[%clk 0:02:12]}  f5 {[%clk 0:02:08]} 10. Bg2 {[%clk 0:02:13]}  Qf6 {[%clk 0:02:05]} 11. e3 {[%clk 0:02:10]}  Bd7 {[%clk 0:01:57]} 12. b3 {[%clk 0:02:08]}  g5 {[%clk 0:01:52]} 13. Bb2 {[%clk 0:02:07]}  g4 {[%clk 0:01:51]} 14. Ne5 {[%clk 0:02:07]}  Rad8 {[%clk 0:01:35]} 15. O-O-O {[%clk 0:02:04]}  Nxe5 {[%clk 0:01:29]} 16. dxe5 {[%clk 0:02:04]}  Qe7 {[%clk 0:01:28]} 17. cxd5 {[%clk 0:02:00]}  exd5 {[%clk 0:01:27]} 18. Rxd5 {[%clk 0:02:01]}  Bc6 {[%clk 0:01:26]} 19. Rxd8 {[%clk 0:01:57]}  Rxd8 {[%clk 0:01:23]} 20. Rd1 {[%clk 0:01:38]}  Rxd1+ {[%clk 0:00:56]} 21. Kxd1 {[%clk 0:01:38]}  Nc3+ {[%clk 0:00:53]} 22. Qxc3 {[%clk 0:01:36]}  Bxg2 {[%clk 0:00:52]} 23. e6 {[%clk 0:01:35]}  Bf3+ {[%clk 0:00:49]} 24. Kc1 {[%clk 0:01:31]}  c6 {[%clk 0:00:14]} 25. Qh8# {[%clk 0:01:28]} 1-0


[Site "https://www.chess.com"]